fUSD/lending_fUSD_20251221
["ID","MTS","AMOUNT","RATE_DAILY","PERIOD"]
[399435395,1766349938090,607.514429,0.00032,31]
[399435396,1766349939637,607.514429,0.00032,31]
[399435397,1766349941460,607.514429,0.00032,31]
[399435398,1766349942604,607.514429,0.00032,31]
[399435400,1766349945599,153.919041,0.00032,31]
[399435403,1766350029807,151.0,0.00032876,31]
[399435404,1766350030751,151.0,0.00032876,31]
[399435405,1766350044392,151.0,0.00031394,31]
[399435437,1766350146991,1000.0,0.00035615,30]
[399435438,1766350147248,1000.0,0.00035055,30]
[399435439,1766350147516,1000.0,0.00032875,30]
[399435475,1766350232069,-288.05561932,0.00010987,2]
[399435486,1766350232232,-5941.42034042,0.00010987,2]
[399435487,1766350232288,-2448.38172906,0.00010987,2]
[399435496,1766350238151,-500.0,0.00010986,2]
[399435497,1766350238161,-207.28791828,0.00010986,2]
[399435498,1766350238171,-500.0,0.00010986,2]
[399435499,1766350238181,-139.71208168,0.00010986,2]
[399435500,1766350238192,-90.14877787,0.00010986,2]
[399435501,1766350238201,-500.0,0.00010986,2]
[399435502,1766350238210,-163.76411374,0.00010986,2]
[399435503,1766350238219,-500.0,0.00010986,2]
[399435504,1766350238229,-500.0,0.00010986,2]
[399435505,1766350238238,-500.0,0.00010986,2]
[399435506,1766350238247,-500.0,0.00010986,2]
[399435507,1766350238256,-500.0,0.00010986,2]
[399435508,1766350238265,-339.87491057,0.00010986,2]
[399435509,1766350238281,-160.12508943,0.00010986,2]
[399435510,1766350238290,-4955.92273673,0.00010987,2]
[399435511,1766350238300,-22574.72071146,0.00010987,2]
[399435512,1766350238312,-499.98,0.00010987,2]
[399435513,1766350238323,-963291.51886301,0.00010987,2]
[399435514,1766350238332,-195.0,0.0001099,2]
[399435515,1766350238342,-250.0,0.00010993,2]
[399435516,1766350238351,-300.0,0.00010993,2]
[399435517,1766350238360,-300.0,0.00010993,2]
[399435518,1766350238370,-300.0,0.00010993,2]
[399435520,1766350238379,-250.0,0.00010993,2]
[399435521,1766350238388,-4099.563,0.00010994,2]
[399435522,1766350238397,-7263.0397,0.00010994,2]
[399435523,1766350238407,-2500.0,0.00010994,2]
[399435524,1766350238416,-150.0,0.00011086,2]
[399435525,1766350238426,-288.0,0.00011086,2]
[399435527,1766350238435,-150.99,0.00011087,2]
[399435528,1766350238445,-9999.99,0.00011087,2]
[399435529,1766350238455,-289.03,0.00011087,2]
[399435530,1766350238464,-299.99,0.00011087,2]
[399435531,1766350238474,-151.0,0.00011087,2]
[399435532,1766350238484,-151.0,0.00011087,2]
[399435533,1766350238493,-151.0,0.00011087,2]
[399435534,1766350238503,-151.0,0.00011087,2]
[399435535,1766350238512,-151.0,0.00011087,2]
[399435537,1766350238521,-151.0,0.00011087,2]
[399435539,1766350238531,-151.0,0.00011087,2]
[399435542,1766350238547,-205.19317791,0.00011087,2]
[399435543,1766350238559,-6032.22,0.00011092,2]
[399435544,1766350238568,-9999.99,0.00011093,2]
[399435545,1766350238578,-150.99,0.00011093,2]
[399435546,1766350238587,-1058.403,0.00011093,2]
[399435547,1766350238597,-154.21759511,0.00011887,2]
[399435548,1766350238609,-4670.23128123,0.00011987,2]
[399435549,1766350238618,-195.0,0.00012086,2]
[399435550,1766350238628,-9999.99,0.00012087,2]
[399435551,1766350238638,-344.61,0.00012087,2]
[399435552,1766350238647,-13312.29,0.00012087,2]
[399435553,1766350238657,-250.0,0.00012092,2]
[399435554,1766350238666,-300.0,0.00012092,2]
[399435555,1766350238675,-300.0,0.00012092,2]
[399435556,1766350238685,-1500.0,0.00012321,2]
[399435557,1766350238694,-4670.23128121,0.00012533,2]
[399435558,1766350238704,-1000.0,0.0001289,2]
[399435559,1766350238714,-33494.9637,0.0001289,2]
[399435560,1766350238724,-4670.23128121,0.00013079,2]
[399435561,1766350238734,-4670.23128121,0.00013625,2]
[399435562,1766350238744,-500.0,0.00013643,2]
[399435563,1766350238754,-366.50102145,0.00013643,2]
[399435564,1766350238763,-500.0,0.00013643,2]
[399435565,1766350238774,-500.0,0.00013643,2]
[399435566,1766350238784,-259.25,0.00013818,2]
[399435567,1766350238794,-200.0,0.00013818,2]
[399435568,1766350238804,-4670.23128121,0.00014171,2]
[399435569,1766350238815,-7011.91,0.0001422,2]
[399435570,1766350238825,-154.2175951,0.00014394,2]
[399435571,1766350238835,-150.0,0.00014548,2]
[399435572,1766350238845,-259.25,0.00014586,2]
[399435573,1766350238855,-4670.23128121,0.00014716,2]
[399435574,1766350238865,-151.0,0.00014865,2]
[399435575,1766350238875,-151.0,0.00014867,2]
[399435576,1766350238885,-151.0,0.00014893,2]
[399435577,1766350238895,-151.0,0.00014903,2]
[399435578,1766350238905,-151.0,0.00014903,2]
[399435579,1766350238915,-4670.23128121,0.00015262,2]
[399435580,1766350238925,-1000.0,0.00015313,2]
[399435581,1766350238936,-259.25,0.00015353,2]
[399435582,1766350238945,-166.66,0.00015611,2]
[399435583,1766350238955,-4670.23128121,0.00015808,2]
[399435584,1766350238965,-259.25,0.00016121,2]
[399435585,1766350238975,-166.66,0.00016126,2]
[399435586,1766350238984,-4670.23128121,0.00016354,2]
[399435587,1766350238994,-10168.2,0.00016438,2]
[399435588,1766350239003,-500.0,0.00016473,2]
[399435589,1766350239013,-500.0,0.00016473,2]
[399435590,1766350239023,-507.35959286,0.00016473,2]
[399435591,1766350239037,-500.0,0.00016473,2]
[399435592,1766350239046,-500.0,0.00016473,2]
[399435593,1766350239056,-517.55500559,0.00016473,2]
[399435594,1766350239066,-500.0,0.00016473,2]
[399435595,1766350239077,-500.0,0.00016473,2]
[399435596,1766350239087,-500.0,0.00016473,2]
[399435597,1766350239097,-500.0,0.00016473,2]
[399435598,1766350239107,-166.66,0.00016642,2]
[399435599,1766350239117,-199.8712032,0.00016757,2]
[399435600,1766350239126,-259.25,0.00016889,2]
[399435601,1766350239136,-2145.07550922,0.00016899,2]
[399435602,1766350239146,-172.34861793,0.000169,2]
[399435603,1766350239156,-698.7155,0.000169,2]
[399435604,1766350239166,-4670.23128121,0.000169,2]
[399435605,1766350239176,-154.2175951,0.000169,2]
[399435606,1766350239186,-511.07596709,0.000169,2]
[399435607,1766350239196,-212.77043573,0.000169,2]
[399435608,1766350239205,-294.0,0.00016966,2]
[399435609,1766350239215,-150.0,0.00016989,2]
[399435610,1766350239225,-151.0,0.00016989,2]
[399435611,1766350239235,-1101.62355976,0.00016991,5]
[399435612,1766350239245,-1001.6953748,0.00016992,2]
[399435613,1766350239254,-149824.0553003,0.00016992,2]
[399435614,1766350239264,-151.0,0.00016997,2]
[399435615,1766350239273,-300.0,0.00016999,2]
[399435616,1766350239283,-300.0,0.00016999,2]
[399435617,1766350239293,-666.0,0.00016999,2]
[399435618,1766350239302,-666.0,0.00016999,2]
[399435619,1766350239311,-300.0,0.00016999,2]
[399435620,1766350239320,-2342940.97672156,0.00017,2]
[399435621,1766350239334,-146170.8799,0.00017,2]
[399435623,1766350240233,-10000.0,0.0001451,2]
[399435624,1766350240244,-9998.131418,0.00017,2]
[399435625,1766350240340,-949.309992,0.00017,2]
[399435626,1766350240351,-1614.87058956,0.00017,2]
[399435627,1766350240362,-684.71732006,0.00017,2]
[399435628,1766350241451,-6315.3454475,0.00017,2]
[399435629,1766350241507,-323.67671364,0.00017,2]
[399435630,1766350241518,-467.97099624,0.00017,2]
[399435631,1766350241563,-4480.8035198,0.00017,2]
[399435632,1766350241676,-332.13228803,0.00017,2]
[399435633,1766350241690,-1427.5027801,0.00017,2]
[399435634,1766350241702,-21032.49278182,0.00017,2]
[399435635,1766350241712,-1059.80161734,0.00017,2]
[399435642,1766350243271,-738.03547195,0.00017,2]
[399435643,1766350243287,-777.45991394,0.00017,2]
[399435644,1766350243433,-151.0,0.00014873,2]
[399435645,1766350243442,-858265.9999997,0.00017,2]
[399435646,1766350243454,-2934.56041804,0.00017,2]
[399435647,1766350243466,-1158.61308953,0.00017,2]
[399435648,1766350243478,-1801.66904595,0.00017,2]
[399435649,1766350243493,-257.41840105,0.00017,2]
[399435650,1766350243504,-294.77570131,0.00017,2]
[399435651,1766350243515,-6424.73385545,0.00017,2]
[399435654,1766350246212,-500.0,0.00013698,2]
[399435655,1766350246222,-8305.00926908,0.00017,2]
[399435656,1766350246234,-569.93088227,0.00017,2]
[399435657,1766350246477,-635.38727848,0.00017,2]
[399435658,1766350246489,-975.43176676,0.00017,2]
[399435661,1766350258062,173.0,0.00034521,30]
[399435668,1766350297173,1739.496,0.00035034,40]
[399435669,1766350297539,623.1,0.00035616,39]
[399435715,1766350567316,243.0,0.00035616,30]
[399435716,1766350709412,164.83,9.238e-05,2]
[399435732,1766350897303,1603.278,0.00035576,42]
[399435750,1766351340348,1000.0,0.00035615,30]
[399435751,1766351340583,1000.0,0.00035615,30]
[399435752,1766351340827,1000.0,0.00035575,30]
[399435753,1766351341121,1000.0,0.00035033,30]
[399435797,1766351431292,-387.105,0.00010329,2]
[399435800,1766351431303,-3213.965,0.00010329,2]
[399435801,1766351431312,-1027.58982183,0.00010437,2]
[399435802,1766351431323,-572.41017817,0.00010437,2]
[399435803,1766351431332,-1503.36725816,0.00010768,2]
[399435804,1766351431344,-99.91074184,0.00010768,2]
[399435805,1766351431353,-250.0,0.00010815,2]
[399435806,1766351431363,-250.0,0.00010857,2]
[399435807,1766351431372,-151.0,0.0001088,2]
[399435808,1766351431382,-288.0,0.00010882,2]
[399435809,1766351431391,-300.0,0.00010882,2]
[399435810,1766351431400,-93.58783843,0.00010882,2]
[399435811,1766351431411,-497.55228091,0.00010882,2]
[399435812,1766351431422,-608.85988066,0.00010882,2]
[399435813,1766351431431,-57362.63829234,0.00010883,2]
[399435814,1766351431441,-5947.01632431,0.00010883,2]
[399435815,1766351431452,-20485.10111907,0.00010883,2]
[399435816,1766351431463,-1138.15847226,0.00010883,2]
[399435817,1766351431474,-659.1457183,0.00010883,2]
[399435818,1766351431485,-4900.2279375,0.00010883,2]
[399435819,1766351431496,-400.60461376,0.00010883,2]
[399435820,1766351431507,-606.48713533,0.00010883,2]
[399435821,1766351431518,-28469.48462922,0.00010883,2]
[399435822,1766351431529,-7162.50841248,0.00010883,2]
[399435824,1766351431540,-4911.49051634,0.00010883,2]
[399435839,1766351437427,-993.31864652,0.00010883,2]
[399435840,1766351437438,-2138.23077622,0.00010883,2]
[399435841,1766351437486,-3999.73842111,0.00010883,2]
[399435842,1766351437498,-12018.8488185,0.00010883,2]
[399435844,1766351437511,-5396.48880239,0.00010883,2]
[399435845,1766351437522,-13229.26000866,0.00010883,2]
[399435846,1766351437533,-25897.12525275,0.00010883,2]
[399435847,1766351437544,-804284.12610294,0.00010883,2]
[399435848,1766351437553,-1200.0,0.00010884,2]
[399435849,1766351437561,-150.0,0.00010886,2]
[399435850,1766351437571,-300.0,0.00010886,2]
[399435851,1766351437580,-1000.0,0.00010887,2]
[399435852,1766351437590,-2500.0,0.00010887,2]
[399435853,1766351437599,-246.21231133,0.0001089,2]
[399435854,1766351437608,-622.24805634,0.00010894,2]
[399435855,1766351437618,-150.0,0.00010959,2]
[399435856,1766351437627,-151.0,0.00010981,2]
[399435857,1766351437636,-151.0,0.00010981,2]
[399435858,1766351437646,-151.0,0.00010981,2]
[399435859,1766351437655,-151.0,0.00010981,2]
[399435861,1766351437664,-151.0,0.00010981,2]
[399435862,1766351437679,-151.0,0.00010981,2]
[399435863,1766351437688,-151.0,0.00010981,2]
[399435864,1766351437697,-151.0,0.00010981,2]
[399435865,1766351437707,-151.0,0.00010981,2]
[399435867,1766351437719,-151.0,0.00010981,2]
[399435869,1766351437730,-151.0,0.00010981,2]
[399435871,1766351437739,-151.0,0.00010981,2]
[399435873,1766351437749,-151.0,0.00010981,2]
[399435875,1766351437759,-151.0,0.00010981,2]
[399435877,1766351437768,-151.0,0.00010981,2]
[399435880,1766351437777,-151.0,0.00010981,2]
[399435883,1766351437786,-151.0,0.00010981,2]
[399435886,1766351437796,-151.0,0.00010981,2]
[399435889,1766351437805,-151.0,0.00010981,2]
[399435892,1766351437815,-151.0,0.00010981,2]
[399435895,1766351437824,-1000.0,0.00010982,2]
[399435898,1766351437833,-500.0,0.00010982,2]
[399435901,1766351437843,-407.08490153,0.00010982,2]
[399435904,1766351437852,-206.89412594,0.00010982,2]
[399435907,1766351437862,-299.99,0.00010983,2]
[399435910,1766351437871,-9999.99,0.00010983,2]
[399435913,1766351437881,-150.99,0.00010983,2]
[399435916,1766351437890,-9999.99,0.00010983,2]
[399435918,1766351437900,-9999.99,0.00010984,2]
[399435920,1766351437910,-6032.22,0.00010984,2]
[399435921,1766351437920,-150.99,0.00010984,2]
[399435924,1766351437929,-2145.07550922,0.00010986,2]
[399435925,1766351437938,-13312.29,0.00010986,2]
[399435927,1766351437948,-360.12259176,0.00010986,2]
[399435929,1766351437957,-282.1340919,0.00010986,2]
[399435931,1766351437966,-3350.3093,0.00010994,2]
[399435933,1766351437975,-1864.83,0.00010997,2]
[399435935,1766351437984,-28256.00528844,0.00011099,2]
[399435937,1766351437993,-300.0,0.00011362,2]
[399435939,1766351438003,-28256.00528838,0.00011561,2]
[399435941,1766351438012,-3055.22,0.00011641,2]
[399435943,1766351438021,-1600.0,0.00011742,2]
[399435945,1766351438030,-999.0,0.00011762,3]
[399435947,1766351438039,-300.0,0.00011845,2]
[399435949,1766351438052,-300.0,0.00011845,2]
[399435951,1766351438062,-195.0,0.00011845,2]
[399435953,1766351438072,-195.0,0.00011845,2]
[399435955,1766351438081,-300.0,0.00011845,2]
[399435957,1766351438091,-250.0,0.00011845,2]
[399435959,1766351438101,-255.0,0.00011931,2]
[399435961,1766351438111,-300.0,0.00011964,2]
[399435963,1766351438120,-1680.0,0.00011971,2]
[399435965,1766351438130,-28256.00528838,0.00012229,2]
[399435967,1766351438140,-622.24805632,0.00012521,2]
[399435969,1766351438150,-28256.00528838,0.00012896,2]
[399435971,1766351438160,-500.0,0.00012959,2]
[399435973,1766351438170,-1600.0,0.00013047,2]
[399435975,1766351438180,-433.0,0.00013075,2]
[399435977,1766351438189,-1556.03735663,0.00013158,2]
[399435979,1766351438200,-2351.0,0.00013168,2]
[399435981,1766351438209,-3240.0,0.00013224,2]
[399435983,1766351438218,-500.0,0.00013342,2]
[399435985,1766351438228,-28256.00528838,0.00013563,2]
[399435987,1766351438238,-500.0,0.00013643,2]
[399435989,1766351438248,-500.0,0.00013643,2]
[399435991,1766351438257,-500.0,0.00013643,2]
[399435993,1766351438266,-500.0,0.00013643,2]
[399435995,1766351438277,-535.22474582,0.00013643,2]
[399435997,1766351438287,-500.0,0.00013643,2]
[399435999,1766351438296,-264.97471348,0.00013643,2]
[399436001,1766351438306,-500.0,0.00013643,2]
[399436003,1766351438316,-500.0,0.00013643,2]
[399436005,1766351438325,-500.25022933,0.00013643,2]
[399436006,1766351438333,-500.0,0.00013643,2]
[399436007,1766351438343,-500.0,0.00013643,2]
[399436008,1766351438352,-500.0,0.00013643,2]
[399436009,1766351438362,-550.17823057,0.00013643,2]
[399436010,1766351438372,-500.0,0.00013643,2]
[399436011,1766351438382,-484.06013596,0.00013643,2]
[399436012,1766351438391,-501.40165484,0.00013643,2]
[399436013,1766351438401,-453.53849539,0.00013643,2]
[399436014,1766351438410,-500.0,0.00013643,2]
[399436015,1766351438419,-500.0,0.00013643,2]
[399436016,1766351438428,-500.0,0.00013643,2]
[399436017,1766351438437,-500.0,0.00013643,2]
[399436018,1766351438448,-235.55154497,0.00013643,2]
[399436019,1766351438457,-500.0,0.00013643,2]
[399436020,1766351438466,-500.0,0.00013643,2]
[399436021,1766351438476,-500.0,0.00013643,2]
[399436022,1766351438485,-500.0,0.00013643,2]
[399436023,1766351438494,-500.0,0.00013643,2]
[399436024,1766351438503,-500.0,0.00013643,2]
[399436025,1766351438512,-500.0,0.00013643,2]
[399436026,1766351438521,-500.0,0.00013643,2]
[399436027,1766351438530,-500.0,0.00013643,2]
[399436028,1766351438539,-500.0,0.00013643,2]
[399436029,1766351438548,-500.0,0.00013643,2]
[399436030,1766351438558,-1795.59,0.00013643,2]
[399436031,1766351438567,-500.0,0.00013698,2]
[399436032,1766351438576,-500.0,0.00013698,2]
[399436033,1766351438585,-500.0,0.00013698,2]
[399436034,1766351438595,-500.0,0.00013698,2]
[399436035,1766351438604,-500.0,0.00013698,2]
[399436036,1766351438613,-344.15406571,0.00013698,2]
[399436037,1766351438624,-500.0,0.00013698,2]
[399436038,1766351438633,-500.0,0.00013698,2]
[399436039,1766351438643,-500.0,0.00013698,2]
[399436040,1766351438652,-500.0,0.00013698,2]
[399436041,1766351438661,-500.0,0.00013698,2]
[399436042,1766351438670,-500.0,0.00013698,2]
[399436043,1766351438681,-500.0,0.00013698,2]
[399436044,1766351438691,-500.0,0.00013698,2]
[399436045,1766351438701,-500.0,0.00013698,2]
[399436046,1766351438710,-500.0,0.00013698,2]
[399436047,1766351438720,-500.0,0.00013698,2]
[399436048,1766351438729,-500.0,0.00013698,2]
[399436049,1766351438739,-500.0,0.00013698,2]
[399436050,1766351438749,-500.0,0.00013698,2]
[399436051,1766351438759,-500.0,0.00013698,2]
[399436052,1766351438769,-500.0,0.00013698,2]
[399436053,1766351438779,-500.0,0.00013698,2]
[399436054,1766351438789,-500.0,0.00013698,2]
[399436055,1766351438798,-500.0,0.00013698,2]
[399436056,1766351438808,-500.0,0.00013698,2]
[399436057,1766351438818,-500.0,0.00013698,2]
[399436058,1766351438828,-500.0,0.00013698,2]
[399436059,1766351438837,-500.0,0.00013698,2]
[399436060,1766351438846,-500.0,0.00013698,2]
[399436061,1766351438856,-500.0,0.00013698,2]
[399436062,1766351438866,-500.0,0.00013698,2]
[399436063,1766351438875,-500.0,0.00013698,2]
[399436064,1766351438885,-500.0,0.00013698,2]
[399436065,1766351438895,-500.0,0.00013698,2]
[399436066,1766351438906,-500.0,0.00013698,2]
[399436067,1766351438915,-500.0,0.00013698,2]
[399436068,1766351438925,-500.0,0.00013698,2]
[399436069,1766351438934,-500.0,0.00013698,2]
[399436070,1766351438944,-500.0,0.00013698,2]
[399436071,1766351438953,-500.0,0.00013698,2]
[399436072,1766351438963,-500.0,0.00013698,2]
[399436073,1766351438972,-500.0,0.00013698,2]
[399436074,1766351438982,-500.0,0.00013698,2]
[399436075,1766351438991,-500.0,0.00013698,2]
[399436076,1766351439000,-500.0,0.00013698,2]
[399436077,1766351439010,-500.0,0.00013698,2]
[399436078,1766351439019,-500.0,0.00013698,2]
[399436079,1766351439028,-500.0,0.00013698,2]
[399436080,1766351439037,-500.0,0.00013698,2]
[399436081,1766351439049,-500.0,0.00013698,2]
[399436082,1766351439059,-500.0,0.00013698,2]
[399436083,1766351439068,-500.0,0.00013698,2]
[399436084,1766351439078,-500.0,0.00013698,2]
[399436085,1766351439088,-500.0,0.00013698,2]
[399436086,1766351439097,-500.0,0.00013698,2]
[399436087,1766351439107,-500.0,0.00013698,2]
[399436088,1766351439116,-500.0,0.00013698,2]
[399436089,1766351439125,-500.0,0.00013698,2]
[399436090,1766351439135,-500.0,0.00013698,2]
[399436091,1766351439144,-500.0,0.00013698,2]
[399436092,1766351439154,-500.0,0.00013698,2]
[399436093,1766351439164,-500.0,0.00013698,2]
[399436094,1766351439174,-500.0,0.00013698,2]
[399436095,1766351439184,-500.0,0.00013698,2]
[399436096,1766351439194,-500.0,0.00013698,2]
[399436097,1766351439203,-500.0,0.00013698,2]
[399436098,1766351439213,-500.0,0.00013698,2]
[399436099,1766351439222,-500.0,0.00013698,2]
[399436100,1766351439232,-500.0,0.00013698,2]
[399436101,1766351439241,-500.0,0.00013698,2]
[399436102,1766351439251,-500.0,0.00013698,2]
[399436103,1766351439261,-500.0,0.00013698,2]
[399436104,1766351439270,-511.95166241,0.00013698,2]
[399436105,1766351439280,-500.0,0.00013698,2]
[399436106,1766351439289,-500.0,0.00013698,2]
[399436107,1766351439299,-500.0,0.00013698,2]
[399436108,1766351439307,-279.56152478,0.00013698,2]
[399436109,1766351439317,-500.0,0.00013698,2]
[399436110,1766351439326,-500.0,0.00013698,2]
[399436111,1766351439334,-500.0,0.00013698,2]
[399436112,1766351439345,-500.0,0.00013698,2]
[399436113,1766351439354,-500.0,0.00013698,2]
[399436114,1766351439363,-500.0,0.00013698,2]
[399436116,1766351439372,-500.0,0.00013698,2]
[399436117,1766351439380,-500.0,0.00013698,2]
[399436119,1766351439390,-500.0,0.00013698,2]
[399436120,1766351439399,-500.0,0.00013698,2]
[399436121,1766351439408,-500.0,0.00013698,2]
[399436122,1766351439417,-500.0,0.00013698,2]
[399436123,1766351439427,-500.0,0.00013698,2]
[399436125,1766351439436,-500.0,0.00013698,2]
[399436127,1766351439445,-500.0,0.00013698,2]
[399436128,1766351439454,-500.0,0.00013698,2]
[399436129,1766351439463,-500.0,0.00013698,2]
[399436130,1766351439471,-500.0,0.00013698,2]
[399436131,1766351439480,-500.0,0.00013698,2]
[399436132,1766351439489,-166.66,0.00013699,2]
[399436133,1766351439498,-1000.0,0.00013699,2]
[399436134,1766351439507,-13733.1,0.00013699,2]
[399436135,1766351439516,-196.43,0.00013699,2]
[399436136,1766351439525,-500.0,0.00013699,2]
[399436137,1766351439534,-500.0,0.00013699,2]
[399436138,1766351439542,-500.0,0.00013699,2]
[399436139,1766351439552,-500.0,0.00013699,2]
[399436140,1766351439561,-500.0,0.00013699,2]
[399436141,1766351439570,-500.0,0.00013699,2]
[399436142,1766351439579,-500.0,0.00013699,2]
[399436143,1766351439588,-500.0,0.00013699,2]
[399436144,1766351439598,-500.0,0.00013699,2]
[399436145,1766351439607,-500.0,0.00013699,2]
[399436146,1766351439616,-500.0,0.00013699,2]
[399436147,1766351439625,-500.0,0.00013699,2]
[399436148,1766351439635,-500.0,0.00013699,2]
[399436149,1766351439644,-500.0,0.00013699,2]
[399436150,1766351439654,-600.34837015,0.00013699,2]
[399436151,1766351439664,-500.0,0.00013699,2]
[399436152,1766351439674,-500.0,0.00013699,2]
[399436153,1766351439683,-500.0,0.00013699,2]
[399436154,1766351439692,-500.0,0.00013699,2]
[399436155,1766351439700,-500.0,0.00013699,2]
[399436156,1766351439711,-500.0,0.00013699,2]
[399436157,1766351439721,-500.0,0.00013699,2]
[399436158,1766351439730,-500.0,0.00013699,2]
[399436159,1766351439739,-500.0,0.00013699,2]
[399436160,1766351439748,-500.0,0.00013699,2]
[399436161,1766351439757,-500.0,0.00013699,2]
[399436162,1766351439766,-500.0,0.00013699,2]
[399436163,1766351439775,-500.0,0.00013699,2]
[399436164,1766351439785,-500.0,0.00013699,2]
[399436165,1766351439793,-500.0,0.00013699,2]
[399436166,1766351439803,-500.0,0.00013699,2]
[399436167,1766351439812,-500.0,0.00013699,2]
[399436168,1766351439822,-635.86100093,0.00013699,2]
[399436169,1766351439831,-500.0,0.00013699,2]
[399436170,1766351439843,-500.0,0.00013699,2]
[399436171,1766351439853,-500.0,0.00013699,2]
[399436172,1766351439862,-500.0,0.00013699,2]
[399436173,1766351439872,-500.0,0.00013699,2]
[399436174,1766351439881,-500.0,0.00013699,2]
[399436175,1766351439890,-500.0,0.00013699,2]
[399436176,1766351439899,-500.0,0.00013699,2]
[399436177,1766351439909,-500.0,0.00013699,2]
[399436179,1766351439918,-500.0,0.00013699,2]
[399436181,1766351439928,-500.0,0.00013699,2]
[399436182,1766351439937,-500.0,0.00013699,2]
[399436183,1766351439946,-500.0,0.00013699,2]
[399436184,1766351439956,-500.0,0.00013699,2]
[399436185,1766351439966,-500.0,0.00013699,2]
[399436186,1766351439975,-500.0,0.00013699,2]
[399436187,1766351439985,-500.0,0.00013699,2]
[399436188,1766351439994,-500.0,0.00013699,2]
[399436189,1766351440003,-500.0,0.00013699,2]
[399436190,1766351440013,-500.0,0.00013699,2]
[399436191,1766351440024,-500.0,0.00013699,2]
[399436192,1766351440034,-500.0,0.00013699,2]
[399436193,1766351440043,-500.0,0.00013699,2]
[399436194,1766351440056,-500.0,0.00013699,2]
[399436195,1766351440066,-500.0,0.00013699,2]
[399436196,1766351440075,-500.0,0.00013699,2]
[399436197,1766351440086,-500.0,0.00013699,2]
[399436198,1766351440097,-500.0,0.00013699,2]
[399436199,1766351440106,-500.0,0.00013699,2]
[399436200,1766351440116,-500.0,0.00013699,2]
[399436202,1766351440127,-500.0,0.00013699,2]
[399436203,1766351440137,-188.04,0.00013833,2]
[399436204,1766351440147,-166.66,0.00013836,2]
[399436205,1766351440156,-1795.59,0.00013917,2]
[399436206,1766351440165,-166.66,0.00013973,2]
[399436207,1766351440175,-166.66,0.0001411,2]
[399436208,1766351440186,-622.24805632,0.00014147,2]
[399436209,1766351440195,-1000.0,0.00014191,2]
[399436210,1766351440205,-1000.0,0.00014191,2]
[399436211,1766351440215,-1000.0,0.00014191,2]
[399436212,1766351440225,-1000.0,0.00014191,2]
[399436213,1766351440234,-1000.0,0.00014191,2]
[399436214,1766351440244,-1000.0,0.00014191,2]
[399436215,1766351440254,-1000.0,0.00014191,2]
[399436216,1766351440264,-1000.0,0.00014191,2]
[399436217,1766351440273,-1000.0,0.00014191,2]
[399436218,1766351440283,-1000.0,0.00014191,2]
[399436219,1766351440292,-1000.0,0.00014191,2]
[399436220,1766351440302,-936.70587254,0.00014191,2]
[399436221,1766351440311,-866.15226393,0.00014191,2]
[399436222,1766351440320,-1144.26340267,0.00014191,2]
[399436223,1766351440329,-1000.0,0.00014191,2]
[399436224,1766351440338,-1000.0,0.00014191,2]
[399436225,1766351440348,-1000.0,0.00014191,2]
[399436226,1766351440357,-1000.0,0.00014191,2]